lending/lending_fUSD_20250418
["ID","MTS","AMOUNT","RATE_DAILY","PERIOD"]
[358336361,1744948248152,-500.0,0.00131506,120]
[358336362,1744948248161,-500.0,0.00131506,120]
[358336363,1744948248172,-500.0,0.00131506,120]
[358336364,1744948248182,-500.0,0.00131506,120]
[358336365,1744948248192,-500.0,0.00131506,120]
[358336366,1744948248203,-500.0,0.00131506,120]
[358336367,1744948248213,-500.0,0.00131506,120]
[358336368,1744948248223,-500.0,0.00131506,120]
[358336369,1744948248233,-500.0,0.00131506,120]
[358336370,1744948248243,-500.0,0.00131506,120]
[358336371,1744948248253,-500.0,0.00131506,120]
[358336372,1744948248263,-500.0,0.00131506,120]
[358336373,1744948248273,-500.0,0.00131506,120]
[358336374,1744948248283,-516.50286162,0.00131506,120]
[358336375,1744948248294,-532.15661193,0.00131506,120]
[358336376,1744948248308,-530.84922461,0.00131506,120]
[358336377,1744948248317,-500.0,0.00131506,120]
[358336378,1744948248331,-500.0,0.00131506,120]
[358336379,1744948248342,-515.46785417,0.00131506,120]
[358336380,1744948248352,-496.46746673,0.00131506,120]
[358336381,1744948248362,-500.0,0.00131506,120]
[358336382,1744948248372,-222.3847655,0.00131506,120]
[358336383,1744948248383,-246.99605944,0.00131506,120]
[358336384,1744948248393,-500.0,0.00131506,120]
[358336385,1744948248403,-510.00464882,0.00131506,120]
[358336386,1744948248414,-500.0,0.00131506,120]
[358336387,1744948248423,-500.0,0.00131506,120]
[358336388,1744948248434,-300.0,0.00131506,120]
[358336389,1744948248444,-504.63526916,0.00131506,120]
[358336390,1744948248454,-413.00921065,0.00131506,120]
[358336391,1744948248464,-520.73066437,0.00131506,120]
[358336392,1744948248474,-500.0,0.00131506,120]
[358336393,1744948248484,-500.0,0.00131506,120]
[358336394,1744948248494,-500.0,0.00131506,120]
[358336395,1744948248503,-500.0,0.00131506,120]
[358336396,1744948248513,-500.0,0.00131506,120]
[358336397,1744948248523,-500.0,0.00131506,120]
[358336398,1744948248533,-500.0,0.00131506,118]
[358336399,1744948248542,-500.0,0.00131506,120]
[358336400,1744948248552,-500.0,0.00131506,120]
[358336401,1744948248561,-500.0,0.00131506,120]
[358336402,1744948248571,-514.52131241,0.00131506,120]
[358336403,1744948248581,-500.0,0.00131506,120]
[358336404,1744948248591,-511.52171622,0.00131506,120]
[358336405,1744948248600,-500.0,0.00131506,120]
[358336406,1744948248609,-500.0,0.00131506,120]
[358336407,1744948248619,-500.0,0.00131506,120]
[358336408,1744948248628,-500.0,0.00131506,120]
[358336409,1744948248637,-500.0,0.00131506,120]
[358336410,1744948248647,-505.77487227,0.00131506,120]
[358336411,1744948248656,-500.0,0.00131506,120]
[358336412,1744948248666,-519.74379939,0.00131506,120]
[358336413,1744948248676,-596.98652864,0.00131506,120]
[358336414,1744948248686,-500.0,0.00131506,120]
[358336415,1744948248696,-500.0,0.00131506,120]
[358336416,1744948248705,-206.79932346,0.00131506,7]
[358336417,1744948248715,-410.06318802,0.00131506,120]
[358336418,1744948248724,-250.0,0.00131506,120]
[358336419,1744948248734,-500.0,0.00131506,120]
[358336420,1744948248743,-512.86698545,0.00131506,120]
[358336421,1744948248753,-439.87737397,0.00131506,120]
[358336422,1744948248773,-60.12262603,0.00131506,120]
[358336423,1744948248782,-500.0,0.00131506,120]
[358336424,1744948248792,-1000.0,0.00131506,35]
[358336425,1744948248802,-535.947804,0.00131506,120]
[358336426,1744948248812,-476.25539952,0.00131506,120]
[358336431,1744948528047,250.0,0.00017,2]
[358336432,1744948529113,300.0,0.00019,2]
[358336433,1744948531276,-317.39747708,0.00021,2]
[358336434,1744948646340,3651.0,0.000265,30]
[358336436,1744948919694,41343.0,0.00028,120]
[358336438,1744949148142,-32.60252292,0.00021,2]
[358336439,1744949148166,-216.74207745,0.00056599,2]
[358336440,1744949148188,-192.45195173,0.000566,2]
[358336441,1744949225099,-151.0,0.00045,120]
[358336442,1744949225121,-131.69117345,0.00052,120]
[358336443,1744949231095,-321.30882655,0.00052,120]
[358336444,1744949231120,-190.87484888,0.00056599,2]
[358336445,1744949231142,-522.07480301,0.00056699,10]
[358336446,1744949231171,-177.92519699,0.00056699,10]
[358336447,1744949231192,-352.59564289,0.00056699,90]
[358336448,1744949231218,-153.44,0.000567,57]
[358336449,1744949231245,-153.44,0.000567,57]
[358336450,1744949231271,-153.44,0.000567,57]
[358336451,1744949231296,-153.44,0.000567,57]
[358336452,1744949231322,-89.74408767,0.000567,57]
[358336453,1744949244142,-63.69591233,0.000567,57]
[358336454,1744949244171,-153.44,0.000567,57]
[358336455,1744949244201,-153.44,0.000567,57]
[358336456,1744949244231,-153.44,0.000567,57]
[358336457,1744949244261,-153.44,0.000567,57]
[358336458,1744949244284,-168.11,0.00059361,120]
[358336459,1744949244307,-320.0,0.00059587,10]
[358336460,1744949244329,-606.42271318,0.00060221,2]
[358336461,1744949244352,-500.0,0.00060321,120]
[358336462,1744949244374,-500.0,0.00060321,120]
[358336463,1744949244395,-500.0,0.00061199,120]
[358336464,1744949244416,-350.0,0.0006226,111]
[358336465,1744949244438,-250.0,0.0006226,2]
[358336466,1744949244460,-500.0,0.00065087,120]
[358336467,1744949244482,-700.0,0.00068434,120]
[358336468,1744949244504,-238.6192,0.0006892,2]
[358336469,1744949244525,-538.67200498,0.00069985,30]
[358336470,1744949244547,-4549.638922,0.00074084,30]
[358336471,1744949244568,-500.0,0.00075529,120]
[358336472,1744949244590,-600.0,0.00076977,120]
[358336473,1744949244613,-114.80578394,0.00080205,120]
[358336474,1744949253115,-606.42271317,0.00061099,2]
[358336475,1744949253135,-288.27423254,0.00071715,120]
[358336477,1744949353134,-169.93592936,0.00071715,120]
[358336485,1744949432085,-186.0,0.0007,30]
[358336486,1744949432095,-186.0,0.0007,120]
[358336487,1744949432105,-1928.26063306,0.0007,2]
[358336488,1744949432242,-3071.73936694,0.0007,2]
[358336489,1744949432252,-41.7898381,0.00071715,120]
[358336490,1744949432262,-500.0,0.00073462,120]
[358336491,1744949432271,-186.0,0.00078,31]
[358336492,1744949432281,-250.0,0.00078887,2]
[358336493,1744949432290,-350.0,0.00078887,111]
[358336494,1744949432299,-186.0,0.0008,120]
[358336495,1744949432309,-292.51421606,0.00080205,120]
[358336496,1744949432320,-190.87484887,0.00083659,2]
[358336497,1744949432330,-500.0,0.00084132,120]
[358336498,1744949432340,-150.99,0.00084132,30]
[358336499,1744949432350,-407.32,0.00085096,120]
[358336501,1744949432359,-500.0,0.00086534,120]
[358336503,1744949432369,-407.32,0.00089986,120]
[358336505,1744949432378,-700.0,0.00094034,120]
[358336507,1744949432387,-407.32,0.00094877,120]
[358336509,1744949432396,-600.0,0.00096925,120]
[358336511,1744949432405,-905.72880259,0.000975,120]
[358336513,1744949432414,-407.32,0.00099767,120]
[358336515,1744949432424,-448.0154,0.00099888,120]
[358336517,1744949432433,-500.0,0.000999,120]
[358336519,1744949432442,-2087.82661118,0.001,30]
[358336520,1744949432451,-500.0,0.001,120]
[358336522,1744949432461,-500.0,0.00101285,120]
[358336524,1744949432471,-500.0,0.00103212,120]
[358336526,1744949432480,-407.32,0.00104658,120]
[358336528,1744949432489,-600.0,0.00106422,20]
[358336530,1744949432499,-320.0,0.00106422,20]
[358336531,1744949432508,-165.21,0.00106422,30]
[358336532,1744949432518,-159.82,0.00107113,2]
[358336533,1744949432528,-3415.52893584,0.00109,120]
[358336534,1744949432537,-1000.0,0.0010936,120]
[358336535,1744949432547,-407.32,0.00109548,120]
[358336536,1744949432557,-500.0,0.00109574,120]
[358336537,1744949432566,-500.0,0.00109728,120]
[358336538,1744949432576,-500.0,0.00109728,120]
[358336539,1744949432586,-500.0,0.00109728,120]
[358336540,1744949432595,-500.0,0.00109728,120]
[358336541,1744949432605,-500.0,0.00109728,120]
[358336542,1744949432614,-642.18034606,0.00109728,120]
[358336543,1744949432624,-500.0,0.00109728,120]
[358336544,1744949432633,-500.0,0.00109728,120]
[358336545,1744949432643,-500.0,0.00109728,120]
[358336546,1744949432653,-500.0,0.00109728,120]
[358336547,1744949432663,-23900.0,0.00109729,30]
[358336548,1744949432673,-1647.13296814,0.00110059,120]
[358336549,1744949432692,-26233.49263186,0.00110059,120]
[358336550,1744949432702,-10643.8,0.00110159,40]
[358336551,1744949432711,-190.87484887,0.00110719,2]
[358336552,1744949432721,-166.37,0.00110819,120]
[358336553,1744949432731,-926.29,0.00112381,120]
[358336554,1744949432744,-158.43,0.00112577,2]
[358336555,1744949432755,-165.52,0.00112774,2]
[358336556,1744949432764,-250.0,0.00112848,120]
[358336557,1744949432774,-159.82,0.00114282,2]
[358336558,1744949432784,-407.32,0.00114438,120]
[358336559,1744949432793,-409.77,0.0011692,120]
[358336560,1744949432802,-701.26,0.00117056,30]
[358336561,1744949432811,-869.71,0.00117056,2]
[358336562,1744949432821,-407.32,0.00119329,120]
[358336563,1744949432830,-150.0,0.00119672,30]
[358336564,1744949432840,-360.75155278,0.0012,120]
[358336565,1744949432849,-159.82,0.00121451,2]
[358336566,1744949432858,-165.29,0.00122128,120]
[358336567,1744949432868,-1000.0,0.0012303,120]
[358336568,1744949432877,-151.041813,0.00123498,120]
[358336569,1744949432886,-407.32,0.00124219,120]
[358336570,1744949432897,-926.29,0.00126429,120]
[358336571,1744949432907,-500.0,0.00127491,120]
[358336572,1744949432917,-159.82,0.0012862,2]
[358336573,1744949432928,-600.0,0.00128652,120]
[358336574,1744949432940,-407.32,0.0012911,120]
[358336575,1744949432950,-1658.8709401,0.0012999,2]
[358336576,1744949432958,-816.8647632,0.0013,2]
[358336577,1744949432966,-1000.0,0.0013,15]
[358336578,1744949432975,-1000.0,0.0013,18]
[358336579,1744949432984,-1000.0,0.0013,20]
[358336580,1744949432994,-1000.0,0.0013,12]
[358336581,1744949433003,-1000.0,0.0013,27]
[358336582,1744949433014,-369.000001,0.0013,120]
[358336583,1744949433023,-1000.0,0.0013,3]
[358336584,1744949433033,-1000.0,0.0013,3]
[358336585,1744949433043,-1000.0,0.0013,4]
[358336586,1744949433053,-1000.0,0.0013,25]
[358336587,1744949433063,-1000.0,0.0013,25]
[358336588,1744949433073,-1000.0,0.0013,3]
[358336589,1744949433083,-1002.0,0.0013,5]
[358336590,1744949433094,-1001.0,0.0013,20]
[358336591,1744949433104,-232.60756037,0.0013,120]
[358336592,1744949433114,-2352.89242467,0.0013,120]
[358336593,1744949433124,-2936.5983475,0.0013,120]
[358336594,1744949433134,-395.80328686,0.00130489,120]
[358336595,1744949433143,-600.0,0.00130522,120]
[358336596,1744949433154,-500.0,0.00130532,15]
[358336597,1744949433164,-500.0,0.00130532,2]
[358336598,1744949433174,-395.80328686,0.00130807,120]
[358336599,1744949433184,-152.67075217,0.00130905,60]
[358336600,1744949433194,-502.01556919,0.00130905,2]
[358336601,1744949433203,-387.07733133,0.00130905,2]
[358336602,1744949433213,-159.7223442,0.00130905,30]
[358336603,1744949433222,-501.33697521,0.00130905,60]
[358336604,1744949433231,-395.80328686,0.00130982,120]
[358336605,1744949433241,-4100.00000007,0.00131,120]
[358336606,1744949433250,-500.0,0.00131,120]
[358336607,1744949433260,-311.85,0.00131195,120]
[358336608,1744949433270,-224.2648,0.00131195,120]
[358336609,1744949433280,-158.98453187,0.00131206,28]
[358336610,1744949433289,-570.84383713,0.00131206,80]
[358336611,1744949433299,-274.08,0.00131296,30]
[358336612,1744949433309,-500.0,0.00131305,120]
[358336613,1744949433319,-500.0,0.00131305,120]
[358336614,1744949433329,-748.51062637,0.00131305,120]
[358336615,1744949433338,-748.51062637,0.00131305,120]
[358336616,1744949433349,-161.68046511,0.00131305,120]
[358336617,1744949433358,-296.0692694,0.00131305,120]
[358336618,1744949433368,-748.51062637,0.00131305,120]
[358336619,1744949433378,-748.51062637,0.00131305,120]
[358336620,1744949433388,-748.51062637,0.00131305,120]
[358336621,1744949433398,-748.51062637,0.00131305,120]
[358336622,1744949433407,-748.51062637,0.00131305,120]
[358336623,1744949433420,-748.51062637,0.00131305,120]
[358336624,1744949433430,-748.51062637,0.00131305,120]
[358336625,1744949433440,-748.51062637,0.00131305,120]
[358336626,1744949433449,-748.51062637,0.00131305,120]
[358336627,1744949433459,-748.51062637,0.00131305,120]
[358336628,1744949433469,-748.51062637,0.00131305,120]
[358336629,1744949433480,-748.51062637,0.00131305,120]
[358336630,1744949433489,-748.51062637,0.00131305,120]
[358336631,1744949433499,-748.51062637,0.00131305,120]
[358336632,1744949433510,-748.51062637,0.00131305,120]
[358336633,1744949433520,-748.51062637,0.00131305,120]
[358336634,1744949433530,-748.51062637,0.00131305,120]
[358336635,1744949433540,-748.51062637,0.00131305,120]
[358336636,1744949433550,-748.51062637,0.00131305,120]
[358336637,1744949433560,-814.00530618,0.00131305,120]
[358336638,1744949433571,-814.00530618,0.00131305,120]
[358336639,1744949433581,-814.00530618,0.00131305,120]
[358336640,1744949433591,-814.00530618,0.00131305,120]
[358336641,1744949433601,-814.00530618,0.00131305,120]
[358336642,1744949433611,-814.00530618,0.00131305,120]
[358336643,1744949433622,-814.00530618,0.00131305,120]
[358336644,1744949433632,-814.00530618,0.00131305,120]
[358336645,1744949433642,-29313.062,0.00131306,120]
[358336646,1744949433652,-309213.12160442,0.00131306,120]
[358336647,1744949433665,-2360.83155455,0.00131306,120]
[358336648,1744949438307,-1474.21608244,0.00131306,120]
[358336649,1744949438319,-3231.13000415,0.00131306,120]
[358336650,1744949438331,-2469.59842164,0.00131306,120]
[358336651,1744949438342,-263.87137854,0.00131306,120]
[358336652,1744949438411,-560.92,0.00131306,120]
[358336653,1744949438422,-47854.72115426,0.00131306,120]
[358336654,1744949438432,-8643.5188,0.00131306,31]
[358336655,1744949438441,-1719.5516,0.00131306,120]
[358336656,1744949438451,-165.52,0.00131387,2]
[358336657,1744949438463,-741.13685006,0.00131396,19]
[358336658,1744949438474,-1000.0,0.001314,30]
[358336659,1744949438484,-1000.0,0.001314,30]
[358336660,1744949438494,-1000.0,0.001314,30]
[358336661,1744949438504,-1000.0,0.001314,30]
[358336662,1744949438514,-1000.0,0.001314,25]
[358336663,1744949438524,-1000.0,0.001314,25]
[358336664,1744949438534,-547.0,0.001314,35]
[358336665,1744949438543,-406.59150994,0.00131406,120]
[358336666,1744949438553,-764.1461,0.00131406,30]
[358336667,1744949438563,-88888.0,0.00131406,120]
[358336668,1744949438573,-5000.0,0.00131406,120]
[358336669,1744949438583,-1482.27370012,0.00131496,19]
[358336670,1744949438592,-300.0,0.00131505,90]
[358336671,1744949438602,-674.70159675,0.00131505,120]
[358336672,1744949438611,-300.0,0.00131505,90]
[358336674,1744949438621,-395.80328686,0.00131505,120]
[358336675,1744949438631,-193.40309233,0.00131506,120]
[358336677,1744949438640,-619.90233311,0.00131506,120]
[358336679,1744949438649,-160.922292,0.00131506,120]
[358336681,1744949438659,-514.10217742,0.00131506,120]
[358336683,1744949438667,-503.69239242,0.00131506,120]
[358336685,1744949438679,-174.12961568,0.00131506,120]
[358336698,1744949438857,-503.68313971,0.00131506,120]
[358336700,1744949438866,-630.379758,0.00131506,120]
[358336702,1744949438876,-500.0,0.00131506,120]
[358336703,1744949438886,-503.07564046,0.00131506,120]
[358336704,1744949438895,-503.65084984,0.00131506,120]
[358336705,1744949438905,-620.85974909,0.00131506,120]
[358336706,1744949438913,-500.0,0.00131506,120]
[358336707,1744949438923,-500.0,0.00131506,120]
[358336708,1744949438932,-500.0,0.00131506,120]
[358336709,1744949438941,-500.0,0.00131506,120]
[358336710,1744949438950,-502.39204461,0.00131506,7]
[358336711,1744949438960,-504.88551541,0.00131506,120]
[358336712,1744949438969,-500.0,0.00131506,120]
[358336713,1744949438979,-503.17380592,0.00131506,120]
[358336714,1744949438988,-643.54007504,0.00131506,120]
[358336715,1744949438998,-500.0,0.00131506,120]
[358336716,1744949439008,-500.0,0.00131506,120]
[358336717,1744949439017,-193.21954938,0.00131506,120]
[358336718,1744949439027,-500.0,0.00131506,120]
[358336719,1744949439036,-526.73327561,0.00131506,120]
[358336720,1744949439046,-179.22147972,0.00131506,120]
[358336721,1744949439055,-334.4938371,0.00131506,120]
[358336722,1744949439065,-242.92387036,0.00131506,120]
[358336723,1744949439075,-500.0,0.00131506,120]
[358336724,1744949439084,-500.0,0.00131506,120]
[358336725,1744949439093,-500.0,0.00131506,120]
[358336726,1744949439103,-500.0,0.00131506,120]
[358336727,1744949439112,-500.0,0.00131506,14]
[358336728,1744949439121,-500.0,0.00131506,120]
[358336729,1744949439130,-518.53129338,0.00131506,14]
[358336730,1744949439139,-535.90696671,0.00131506,120]
[358336731,1744949439149,-151.9705708,0.00131506,120]
[358336732,1744949439159,-343.01327034,0.00131506,120]
[358336733,1744949439167,-500.0,0.00131506,120]
[358336734,1744949439178,-500.0,0.00131506,120]
[358336735,1744949439187,-500.0,0.00131506,120]
[358336736,1744949439196,-500.0,0.00131506,120]
[358336737,1744949439206,-500.0,0.00131506,120]
[358336738,1744949439215,-500.0,0.00131506,120]
[358336739,1744949439225,-500.0,0.00131506,120]
[358336740,1744949439235,-500.0,0.00131506,120]
[358336741,1744949439245,-655.13,0.00131506,120]
[358336742,1744949439255,-521.64515425,0.00131506,120]
[358336743,1744949439266,-500.0,0.00131506,120]
[358336744,1744949439275,-539.80120261,0.00131506,120]
[358336745,1744949439285,-1891.139273,0.00131506,120]
[358336746,1744949439295,-500.0,0.00131506,120]
[358336747,1744949439305,-500.0,0.00131506,120]
[358336748,1744949439315,-152.453833,0.00131506,120]
[358336749,1744949439325,-423.57515015,0.00131506,120]
[358336750,1744949439335,-500.0,0.00131506,120]
[358336751,1744949439344,-500.0,0.00131506,120]
[358336752,1744949439354,-500.0,0.00131506,120]
[358336753,1744949439364,-500.0,0.00131506,120]
[358336754,1744949439374,-500.0,0.00131506,120]
[358336755,1744949439385,-500.0,0.00131506,120]
[358336756,1744949439395,-431.14058475,0.00131506,120]
[358336757,1744949439404,-500.0,0.00131506,120]
[358336758,1744949439414,-500.0,0.00131506,120]
[358336759,1744949439424,-570.68940391,0.00131506,120]
[358336760,1744949439434,-500.0,0.00131506,120]
[358336761,1744949439443,-500.0,0.00131506,120]
[358336762,1744949439453,-500.0,0.00131506,120]
[358336763,1744949439463,-500.0,0.00131506,120]
[358336764,1744949439472,-500.0,0.00131506,120]
[358336765,1744949439481,-2000.0,0.00131506,120]
[358336766,1744949439490,-500.0,0.00131506,120]
[358336767,1744949439499,-500.0,0.00131506,120]
[358336768,1744949439509,-500.0,0.00131506,120]
[358336769,1744949439520,-500.0,0.00131506,120]
[358336770,1744949439530,-500.0,0.00131506,120]
[358336771,1744949439539,-500.0,0.00131506,120]
[358336772,1744949439549,-500.0,0.00131506,120]
[358336773,1744949439558,-500.0,0.00131506,120]
[358336774,1744949439568,-500.0,0.00131506,120]
[358336775,1744949439579,-500.0,0.00131506,120]
[358336776,1744949439589,-500.0,0.00131506,120]
[358336777,1744949439598,-562.22107247,0.00131506,120]
[358336778,1744949439607,-500.0,0.00131506,120]
[358336779,1744949439617,-500.0,0.00131506,120]
[358336780,1744949439626,-500.0,0.00131506,120]
[358336781,1744949439636,-500.0,0.00131506,120]
[358336782,1744949439644,-500.0,0.00131506,120]
[358336783,1744949439655,-500.0,0.00131506,120]
[358336784,1744949439664,-500.0,0.00131506,120]
[358336785,1744949439675,-500.0,0.00131506,120]
[358336786,1744949439685,-557.02105595,0.00131506,120]
[358336787,1744949439695,-535.25997147,0.00131506,120]
[358336788,1744949439704,-500.0,0.00131506,120]
[358336789,1744949439715,-515.28668859,0.00131506,120]
[358336790,1744949439725,-500.0,0.00131506,120]
[358336791,1744949439734,-500.0,0.00131506,120]
[358336792,1744949439743,-518.8523076,0.00131506,120]
[358336793,1744949439756,-508.5588063,0.00131506,120]
[358336794,1744949439766,-323.38357231,0.00131506,120]
[358336795,1744949439776,-500.0,0.00131506,120]
[358336796,1744949439785,-500.0,0.00131506,120]
[358336797,1744949439795,-500.0,0.00131506,120]
[358336798,1744949439804,-500.0,0.00131506,120]
[358336799,1744949439814,-500.0,0.00131506,120]
[358336800,1744949439823,-500.0,0.00131506,120]
[358336801,1744949439832,-500.0,0.00131506,120]
[358336802,1744949439843,-500.0,0.00131506,30]
[358336803,1744949439852,-500.0,0.00131506,120]
[358336804,1744949439861,-500.0,0.00131506,120]
[358336805,1744949439871,-500.0,0.00131506,120]
[358336806,1744949439880,-1250.02,0.00131506,120]
[358336807,1744949439889,-619.73715535,0.00131506,120]
[358336808,1744949439899,-258.99482255,0.00131506,120]
[358336809,1744949439908,-500.0,0.00131506,30]
[358336810,1744949439918,-481.86138057,0.00131506,120]
[358336811,1744949439927,-500.0,0.00131506,120]
[358336812,1744949439936,-538.88591747,0.00131506,120]
[358336813,1744949439947,-500.0,0.00131506,120]
[358336814,1744949439956,-500.0,0.00131506,120]
[358336815,1744949439966,-500.0,0.00131506,120]
[358336816,1744949439975,-591.76,0.00131506,120]
[358336817,1744949439985,-511.81822624,0.00131506,120]
[358336818,1744949439994,-518.16622763,0.00131506,120]
[358336819,1744949440003,-250.0,0.00131506,120]
[358336820,1744949440013,-520.35075012,0.00131506,120]
[358336821,1744949440023,-500.0,0.00131506,120]
[358336822,1744949440033,-517.3531088,0.00131506,120]
[358336823,1744949440042,-500.0,0.00131506,120]
[358336824,1744949440052,-415.29076309,0.00131506,120]
[358336825,1744949440061,-500.0,0.00131506,120]
[358336826,1744949440070,-500.0,0.00131506,120]
[358336827,1744949440080,-500.0,0.00131506,120]
[358336828,1744949440089,-523.1004914,0.00131506,120]
[358336829,1744949440098,-500.0,0.00131506,120]
[358336830,1744949440107,-531.06554554,0.00131506,120]
[358336831,1744949440116,-500.0,0.00131506,120]
[358336832,1744949440126,-612.45,0.00131506,120]
[358336833,1744949440136,-500.0,0.00131506,120]
[358336834,1744949440145,-500.0,0.00131506,120]
[358336835,1744949440155,-280.0359551,0.00131506,120]
[358336836,1744949440164,-500.0,0.00131506,120]
[358336837,1744949440173,-500.0,0.00131506,120]
[358336838,1744949440183,-500.0,0.00131506,30]
[358336839,1744949440193,-500.0,0.00131506,120]
[358336840,1744949440202,-500.0,0.00131506,120]
[358336841,1744949440212,-500.0,0.00131506,120]
[358336842,1744949440222,-240.54624315,0.00131506,120]
[358336843,1744949440231,-500.0,0.00131506,120]
[358336844,1744949440240,-517.13332576,0.00131506,120]
[358336845,1744949440250,-500.0,0.00131506,120]
[358336846,1744949440259,-181.32526105,0.00131506,120]
[358336847,1744949440269,-500.0,0.00131506,120]
[358336848,1744949440279,-500.0,0.00131506,120]
[358336849,1744949440289,-648.73268749,0.00131506,120]
[358336850,1744949440298,-500.0,0.00131506,120]
[358336851,1744949440307,-500.0,0.00131506,120]
[358336852,1744949440316,-500.0,0.00131506,120]
[358336853,1744949440326,-500.0,0.00131506,120]
[358336854,1744949440335,-500.0,0.00131506,120]
[358336855,1744949440344,-508.27002623,0.00131506,120]
[358336856,1744949440353,-498.12799355,0.00131506,120]
[358336857,1744949440362,-500.0,0.00131506,120]
[358336858,1744949440372,-500.0,0.00131506,120]
[358336859,1744949440382,-500.0,0.00131506,120]
[358336860,1744949440391,-500.0,0.00131506,120]
[358336861,1744949440401,-500.0,0.00131506,120]
[358336862,1744949440411,-500.0,0.00131506,120]
[358336863,1744949440420,-385.02717605,0.00131506,120]
[358336864,1744949440430,-576.67710726,0.00131506,120]
[358336865,1744949440439,-489.14296144,0.00131506,120]
[358336866,1744949440449,-568.6719736,0.00131506,120]
[358336867,1744949440459,-500.0,0.00131506,120]
[358336868,1744949440469,-513.79755867,0.00131506,120]
[358336869,1744949440478,-500.0,0.00131506,120]
[358336870,1744949440488,-500.0,0.00131506,120]
[358336871,1744949440498,-500.0,0.00131506,120]
[358336872,1744949440507,-207.86324405,0.00131506,120]
[358336873,1744949440517,-500.0,0.00131506,120]
[358336874,1744949440527,-558.88043859,0.00131506,120]
[358336875,1744949440536,-527.27337386,0.00131506,120]
[358336876,1744949440546,-500.0,0.00131506,120]
[358336877,1744949440555,-383.84467923,0.00131506,120]
[358336878,1744949440565,-500.0,0.00131506,120]
[358336879,1744949440575,-500.0,0.00131506,120]
[358336880,1744949440584,-500.0,0.00131506,120]
[358336881,1744949440595,-500.0,0.00131506,120]
[358336882,1744949440605,-492.96112703,0.00131506,120]
[358336883,1744949440615,-500.0,0.00131506,120]
[358336884,1744949440625,-500.0,0.00131506,120]
[358336885,1744949440635,-500.0,0.00131506,120]
[358336886,1744949440644,-500.0,0.00131506,120]
[358336887,1744949440654,-500.0,0.00131506,120]
[358336888,1744949440664,-500.0,0.00131506,120]
[358336889,1744949440675,-223.98357048,0.00131506,120]
[358336890,1744949440689,-564.35274118,0.00131506,120]
[358336891,1744949440699,-500.0,0.00131506,120]
[358336892,1744949440708,-150.0,0.00131506,120]
[358336893,1744949440717,-510.17599747,0.00131506,120]
[358336894,1744949440728,-500.0,0.00131506,120]
[358336895,1744949440738,-150.0,0.00131506,120]
[358336896,1744949440747,-500.0,0.00131506,120]
[358336897,1744949440759,-538.32779143,0.00131506,120]
[358336898,1744949440768,-500.0,0.00131506,120]
[358336900,1744949440778,-500.0,0.00131506,2]
[358336901,1744949440787,-500.0,0.00131506,2]
[358336902,1744949440796,-500.0,0.00131506,2]
[358336903,1744949440805,-500.0,0.00131506,120]
[358336904,1744949440815,-500.0,0.00131506,120]
[358336906,1744949440825,-500.0,0.00131506,120]
[358336907,1744949440834,-500.0,0.00131506,120]
[358336908,1744949440843,-500.0,0.00131506,120]
[358336909,1744949440852,-500.0,0.00131506,120]
[358336910,1744949440861,-500.0,0.00131506,120]
[358336911,1744949440871,-500.0,0.00131506,120]